Cogmind - Beta 14 *** ADVENTURER MODE // 2024.08.25 @ 19:12:06 // Winter2019/RPGLIKE Player: DeepestRoots Result: Core destroyed Performance ------------- Evolutions (4) 2000 Regions Visited (22) 4400 Robots Destroyed (412) 2060 Value Destroyed (12047) 12047 Prototype IDs (78) 1560 Alien Tech Used (0) 0 Bonus (1827) 1827 TOTAL SCORE: 23894 Bonus ------- High Alert Combat Kills 1099 Follower Combat Kills 1522 Entered Garrisons 400 Aligned with FarCom 300 Met Data Miner 300 Acquired ECA 300 Met Zhirov 300 Built Enhanced Grunts 300 A7 Reached Mainframe 300 Met R17 at Cetus 500 Friendly Fire -3494 Cogmind --------- Core Integrity 0/600 Matter 300/300 Energy 10/970 System Corruption 0% Temperature Cool (0) Movement Hovering (34) Location -6/Archives Parts ------- > --- POWER (2) -------- Hybrid Fission Core Light Neutrino Core > --- PROPULSION (5) --- Cooled Aerolev Unit Cooled Antigrav System Cooled Antigrav System Cooled Antigrav System Cooled Antigrav System > --- UTILITY (11) ----- Advanced Terrain Scanner Advanced Terrain Scan Processor Modified TNC Nanoactuators Advanced Actuator Array Improved Force Booster Improved Reaction Control System Improved Shield Generator Deep Network Scanner Ghost Barrier Corruption Screen > --- WEAPON (3) ------- Impact Mace Impact Mace Molecular Scythe > --- INVENTORY (6) ---- Protomatter-69 Protomatter-68 System Mapper Improved System Restoration Module Phase Cannon Mini Smartbomb Launcher Peak State ------------ > --- POWER ------------ Hybrid Fission Core Light Neutrino Core > --- PROPULSION ------- Cooled Aerolev Unit Cooled Antigrav System Cooled Antigrav System Cooled Antigrav System Cooled Antigrav System > --- UTILITY ---------- Advanced Terrain Scanner Advanced Terrain Scan Processor Modified TNC Nanoactuators Advanced Actuator Array Improved Force Booster Improved Reaction Control System Improved Shield Generator Deep Network Scanner Ghost Barrier Corruption Screen > --- WEAPON ----------- Mini Smartbomb Launcher Impact Mace Molecular Scythe > --- INVENTORY -------- Cooled Airjet EM Disruption Field System Mapper Improved System Restoration Module Phase Cannon Impact Mace [Rating: 145] Favorites ----------- Power Light Neutrino Core Engine Cooled Ion Engine Power Core Light Neutrino Core Propulsion Improved Airjet Treads Centrium Heavy Treads Wheel Compact Wheel Hover Unit Improved Airjet Utility Hacking Suite Device Improved Shield Generator Storage Improved Energy Well Processor Modified TNC Hackware Hacking Suite Protection Reflective Plating Weapon Impact Mace Energy Gun Cooled Pulse Rifle Energy Cannon Phase Cannon Ballistic Gun Minigun Ballistic Cannon Assault Cannon Launcher Heavy Missile Launcher Impact Weapon Impact Mace Slashing Weapon Molecular Scythe Build | -11 -10 -9 -9 -9 -8 -8 -8 -8 -8 -7 -7 -7 -7 -7 -7 -6 -6 -6 -6 -6 -6 -6 ------- Run | Yrd Mat Mat Min Exi Min Mat Gar Mat Gar Fac Was Fac Low Low Dat Pro Fac Was Fac Ext Cet Arc Slots Evolved 17 | 3 . 6 1 . 1 1 . . . 3 . . . . . . 2 . . . . . Power 1 | . . . . . . . . . . 1 . . . . . . . . . . . . Propulsion 4 | 1 . 3 . . . . . . . . . . . . . . . . . . . . Utility 10 | 1 . 3 1 . 1 . . . . 2 . . . . . . 2 . . . . . Weapon 2 | 1 . . . . . 1 . . . . . . . . . . . . . . . . Parts Attached 271 | 6 12 27 4 3 5 22 12 2 9 32 4 44 8 1 1 2 60 . 9 3 5 . Power 22 | 1 3 5 . . . 3 . . . 4 1 4 . . . . 1 . . . . . Engine 15 | 1 3 5 . . . 3 . . . 2 1 . . . . . . . . . . . Core 7 | . . . . . . . . . . 2 . 4 . . . . 1 . . . . . Reactor . | . . . . . . . . . . . . . . . . . . . . . . . Propulsion 43 | 1 3 9 . . . 2 2 . . 7 1 5 . . . . 9 . 1 . 3 . Treads 1 | . . . . . . . . . . . . . . . . . . . . . 1 . Leg . | . . . . . . . . . . . . . . . . . . . . . . . Wheel 4 | 1 3 . . . . . . . . . . . . . . . . . . . . . Hover 38 | . . 9 . . . 2 2 . . 7 1 5 . . . . 9 . 1 . 2 . Flight . | . . . . . . . . . . . . . . . . . . . . . . . Utility 95 | 2 1 7 4 1 1 9 . . . 11 2 21 5 . 1 . 24 . 2 2 2 . Device 73 | 2 1 4 3 . 1 5 . . . 8 . 19 5 . . . 22 . 1 1 1 . Storage 2 | . . . . . . . . . . . . 1 . . . . . . . 1 . . Processor 3 | . . . . 1 . . . . . 1 . . . . . . 1 . . . . . Hackware 5 | . . 2 . . . . . . . . . . . . 1 . 1 . 1 . . . Protection 12 | . . 1 1 . . 4 . . . 2 2 1 . . . . . . . . 1 . Artifact . | . . . . . . . . . . . . . . . . . . . . . . . Weapon 111 | 2 5 6 . 2 4 8 10 2 9 10 . 14 3 1 . 2 26 . 6 1 . . Energy Gun 6 | 1 . 1 . . . . 1 . . 2 . 1 . . . . . . . . . . Energy Cannon 18 | . . . . . . . . 1 2 1 . 1 1 . . 1 8 . 3 . . . Ballistic Gun 15 | 1 . . . . . 3 5 1 3 2 . . . . . . . . . . . . Ballistic Cannon 16 | . 5 4 . 2 2 3 . . . . . . . . . . . . . . . . Launcher 25 | . . 1 . . 2 2 4 . 4 1 . 4 1 . . . 5 . 1 . . . Special Weapon . | . . . . . . . . . . . . . . . . . . . . . . . Impact Weapon 20 | . . . . . . . . . . 4 . 5 1 1 . 1 5 . 2 1 . . Slashing Weapon 11 | . . . . . . . . . . . . 3 . . . . 8 . . . . . Piercing Weapon . | . . . . . . . . . . . . . . . . . . . . . . . Special Melee Weapon . | . . . . . . . . . . . . . . . . . . . . . . . Unidentified Prototypes 20 | . . 1 . . . 2 . . . 5 . 3 . . 1 . 5 . . 1 2 . Parts Lost 3 | . . . . . . . . . . . 2 . . . . . 1 . . . . . Power . | . . . . . . . . . . . . . . . . . . . . . . . Propulsion 1 | . . . . . . . . . . . 1 . . . . . . . . . . . Utility 2 | . . . . . . . . . . . 1 . . . . . 1 . . . . . Weapon . | . . . . . . . . . . . . . . . . . . . . . . . Highest Loss Streak 2 | . . . . . . . . . . . 2 . . . . . 1 . . . . . To Critical Strikes . | . . . . . . . . . . . . . . . . . . . . . . . Average Slot Usage (%) 99 | . 96 99 100 91 100 99 100 100 100 99 85 97 99 100 100 100 99 100 100 100 99 100 Engine 3 | . 13 8 7 7 6 5 6 6 6 5 5 1 . . . . . . . . . . Core 5 | . . . . . . . . . . . . 7 10 10 10 10 9 9 9 9 9 9 Wheel 1 | . 24 . . . . . . . . . . . . . . . . . . . . . Hover 26 | . . 35 35 35 33 32 31 31 31 26 22 25 26 26 26 26 24 23 23 23 22 23 Device 25 | . 28 23 20 18 20 19 18 18 18 21 21 29 30 31 31 31 29 28 28 28 27 28 Processor 8 | . . . . 2 6 6 6 6 6 10 10 10 10 10 10 10 11 14 14 14 14 14 Hackware 8 | . . 10 14 14 13 12 12 12 12 10 7 5 5 5 5 5 9 9 9 9 9 9 Protection 1 | . . 1 7 7 6 5 6 6 6 5 2 1 . . . . . . . . . . Ballistic Gun 2 | . 4 . . . . 3 17 16 14 5 . . . . . . . . . . . . Ballistic Cannon 4 | . 18 17 14 6 12 10 . . . . . . . . . . . . . . . . Impact Weapon 5 | . . . . . . . . . . 7 10 9 9 5 10 9 9 9 5 8 9 9 Slashing Weapon 2 | . . . . . . . . . . . . 4 5 5 5 5 4 4 4 4 4 4 Peak Build Rating 145 | 8 9 35 38 41 43 51 53 55 55 86 80 98 96 95 101 102 142 140 145 143 144 142 Average Rating 84 | 3 8 29 36 35 42 45 52 54 54 72 73 89 94 94 96 101 124 140 142 142 141 142 On Entrance 75 | . 8 9 35 37 41 43 51 53 54 55 80 71 95 94 95 101 101 140 140 143 142 142 Naked Turns . | . . . . . . . . . . . . . . . . . . . . . . . Heaviest Build 54 | 8 13 31 32 32 32 32 28 31 31 48 40 45 45 45 41 42 53 42 54 54 49 49 Greatest Support 89 | 16 32 38 38 38 38 40 42 42 42 48 44 44 44 44 44 44 60 60 88 89 89 61 Greatest Overweight (x) 2 | . 2 1 . . . . . . . 1 1 1 1 1 . . 1 . . . 1 . Average Overweight (x) . | . . . . . . . . . . . . . . . . . . . . . . . Largest Inventory Capacity 6 | 1 2 3 3 3 3 3 4 5 5 6 6 6 6 6 6 6 6 6 6 6 6 6 Average Capacity 4 | . 1 2 3 3 3 3 3 4 5 5 6 6 6 6 6 6 6 6 6 6 6 6 Most Carried 6 | . 2 3 3 3 2 3 4 5 5 6 6 6 6 6 6 6 6 6 6 6 6 6 Average Carried 4 | . 1 2 3 3 2 2 3 4 5 5 5 5 6 6 5 6 5 6 5 5 6 6 Final Capacity 6 | 1 2 3 3 3 3 3 4 5 5 6 6 6 6 6 6 6 6 6 6 6 6 6 Final Carried 6 | . 2 3 3 3 2 3 4 5 5 6 5 6 6 6 6 6 6 6 6 6 6 6 Class Distribution -------------------- 23% | Wizard-Scout 23% | Hacker-Scout 20% | Hacker-Mutant 9% | Hacker-Tank 8% | Commander-Scout 6% | Mutant 5% | Hacker-Gladiator Dominant Class ---------------- Mutant | -10/Materials Hacker-Mutant | -9/Materials Hacker-Mutant | -9/Mines Hacker-Mutant | -9/Exiles Hacker-Mutant | -8/Mines Hacker-Mutant | -8/Materials Hacker-Tank | -8/Garrison Hacker-Tank | -8/Materials Hacker-Tank | -8/Garrison Hacker-Scout | -7/Factory Hacker-Scout | -7/Waste Hacker-Scout | -7/Factory Hacker-Scout | -7/Lower Caves Hacker-Gladiator | -7/Lower Caves Hacker-Scout | -7/Data Miner Hacker-Scout | -6/Proximity Caves Wizard-Scout | -6/Factory Wizard-Scout | -6/Waste Wizard-Scout | -6/Factory Commander-Scout | -6/Extension Commander-Scout | -6/Cetus Commander-Scout | -6/Archives Resources | -11 -10 -9 -9 -9 -8 -8 -8 -8 -8 -7 -7 -7 -7 -7 -7 -6 -6 -6 -6 -6 -6 -6 ----------- Run | Yrd Mat Mat Min Exi Min Mat Gar Mat Gar Fac Was Fac Low Low Dat Pro Fac Was Fac Ext Cet Arc Matter Collected 6867 | 263 197 1146 210 . 143 1557 707 139 405 528 . 604 80 20 . 30 678 . 41 69 50 . Remotely 86 | . . . . . . 66 . . . 20 . . . . . . . . . . . . Salvage Created 15014 | 101 269 1069 526 . 77 924 518 96 444 938 . 1611 274 15 29 381 5863 . 180 1674 25 . Parts 649 | 4 28 89 30 . 24 71 50 12 38 50 . 61 8 1 3 5 114 . 2 56 3 . Haulers Intercepted 18 | . . 3 . . . 5 . . . 5 . 3 . . . . 2 . . . . . Recyclers Shooed 13 | . 2 1 . . 1 3 . . . 1 . . . . . . 5 . . . . . Parts Field Recycled . | . . . . . . . . . . . . . . . . . . . . . . . Retrieved Matter . | . . . . . . . . . . . . . . . . . . . . . . . Parts Self-Destructed 11 | . . . . . . . . . . . . . 7 1 . 3 . . . . . . Prevented 3 | . . . . . . . . . . . . . 1 . . 2 . . . . . . Kills | -11 -10 -9 -9 -9 -8 -8 -8 -8 -8 -7 -7 -7 -7 -7 -7 -6 -6 -6 -6 -6 -6 -6 ------- Run | Yrd Mat Mat Min Exi Min Mat Gar Mat Gar Fac Was Fac Low Low Dat Pro Fac Was Fac Ext Cet Arc Combat Hostiles Destroyed 273 | . 9 35 11 . 11 31 24 3 21 11 . 28 5 . . 5 48 . 3 27 1 . Melee 69 | . . . . . . . . . . 4 . 11 2 . . 4 27 . 2 19 . . Guns 32 | . 5 . . . . 1 13 3 9 1 . . . . . . . . . . . . Cannons 75 | . 4 31 11 . 4 24 . . . . . . 1 . . . . . . . . . AOE 61 | . . 4 . . 7 6 11 . 12 4 . 13 . . . . 4 . . . . . Classes Destroyed 19 | 2 4 4 1 . . 1 2 . . 3 . . . . . . 1 . 1 . . . Worker 28 | . 3 5 1 . 1 2 . . . 1 . 5 . . . . 9 . 1 . . . Builder 12 | . . 3 2 . . 2 . . . 1 . 1 . . . . 2 . . 1 . . Tunneler 6 | 1 . . 1 . 1 . . . . . . 2 . . . . . . 1 . . . Hauler 18 | . . 3 . . . 5 . . . 5 . 3 . . . . 2 . . . . . Recycler 41 | 1 1 . . . . 4 . . . 1 . 6 . . . . 26 . . 2 . . Operator 7 | . . 2 . . . 1 . 2 . . . . . . . . 2 . . . . . Drone 1 | . . . . . . . . . . 1 . . . . . . . . . . . . Watcher 32 | . 3 5 . . . 5 . . . 4 . 4 . . . . 6 . 2 2 1 . Swarmer 86 | . 5 13 3 . 11 7 12 . 14 . . 11 . . . . 10 . . . . . Cutter 1 | . . . . . . . . . . . . . . . . . 1 . . . . . Grunt 90 | . 4 12 5 . . 15 3 2 5 1 . 8 4 . . 4 21 . 2 4 . . Brawler 2 | . . . 1 . . . . . . . . . 1 . . . . . . . . . Duelist 4 | . . . . . . 1 . . . . . . . . . . 1 . . 2 . . Protector 4 | . . . . . . . . . . 2 . 1 . . . . 1 . . . . . Sentry 52 | . . 10 2 . . 8 5 1 2 . . 4 . . . . 5 . . 15 . . Specialist 2 | . . . . . . . . . . 1 . . . . . . 1 . . . . . Hunter 14 | . . . . . . . 1 . . 5 . 1 . . . . 4 . . 3 . . Programmer 12 | . . . . . . . 3 . . 1 . 3 . . . 1 4 . . . . . Behemoth 3 | . . . . . . . . . . . . . . . . . . . 1 2 . . Cetus Guard 1 | . . . . . . . . . . . . . . . . . . . . . 1 . Thug 1 | . . . . . . . . . . . . . . . . . . . . 1 . . Best Kill Streak 23 | 2 4 23 4 . 8 11 5 2 7 7 . 7 4 . 1 2 18 . 4 5 1 . Combat Bots Only 15 | . 3 7 3 . 8 9 5 1 7 6 . 7 4 . . 2 15 . 2 5 1 . Max Kills in Single Turn 5 | 1 1 5 2 . 3 4 4 1 3 4 . 4 1 . 1 1 3 . 1 1 1 . Gunslinging 1 | . . . . . . . . . 1 . . . . . . . . . . . . . Exploded 4 | . . 4 . . 3 3 4 . 3 4 . 4 . . . . 3 . . . . . Melee 1 | . . . . . . . . . . 1 . 1 1 . . 1 1 . 1 1 . . Uniques/NPCs Destroyed 2 | . . . . . . . . . . . . . . . 1 . . . . . 1 . Data Miner (-7/Data Miner) A7 (-6/Cetus) Combat | -11 -10 -9 -9 -9 -8 -8 -8 -8 -8 -7 -7 -7 -7 -7 -7 -6 -6 -6 -6 -6 -6 -6 -------- Run | Yrd Mat Mat Min Exi Min Mat Gar Mat Gar Fac Was Fac Low Low Dat Pro Fac Was Fac Ext Cet Arc Hostile Shots Fired 1215 | . 34 137 15 . 21 135 93 5 29 69 2 175 6 17 2 24 293 . 18 119 21 . Missed 549 | . 9 56 9 . 6 55 42 2 16 38 . 84 3 8 1 13 128 . 6 64 9 . Damage Taken 6717 | . 165 723 185 . 41 645 385 25 110 430 74 764 24 13 25 117 1477 . 142 297 285 790 Core 5165 | . 143 570 128 . 24 468 264 21 76 339 59 578 20 10 25 92 1166 . 108 224 228 622 Absorbed by Shields 1580 | . . . 3 . 19 250 152 10 45 39 10 235 10 5 9 42 285 . 54 110 101 201 Redirected to Core 4306 | . 72 459 118 . 22 407 256 12 62 240 59 445 13 10 . 83 949 . 108 172 197 622 Ignored by Resistances 2572 | . 59 222 62 . 53 272 203 17 63 137 23 323 10 5 9 46 536 . 56 125 101 250 Regen/Repaired (Parts) 314 | . . 27 . . . . . . . . . 225 . . . . 62 . . . . . Core Remaining (%) 96 | 100 100 . . . 84 . . . 99 . . . . . . 100 . . . . . . Volleys Fired 454 | 3 33 85 18 . 12 123 50 23 26 27 . 10 4 . . 1 25 . 14 . . . Largest 3 | 2 2 2 2 . 2 3 3 3 3 3 . 1 1 . . 1 1 . 1 . . . Hottest 130 | 70 70 88 88 . 88 88 75 80 80 130 . 60 90 . . 90 90 . 85 . . . Shots Fired 890 | 6 66 169 36 . 21 243 133 47 52 63 . 10 4 . . 1 25 . 14 . . . Gun 320 | 6 42 . . . . 7 127 36 45 56 . 1 . . . . . . . . . . Cannon 537 | . 24 168 36 . 18 232 . 11 1 7 . . 4 . . 1 21 . 14 . . . Launcher 33 | . . 1 . . 3 4 6 . 6 . . 9 . . . . 4 . . . . . Special . | . . . . . . . . . . . . . . . . . . . . . . . Kinetic 768 | 3 45 168 36 . 18 239 126 36 45 52 . . . . . . . . . . . . Thermal 88 | 3 21 . . . . . . 11 1 11 . 1 4 . . 1 21 . 14 . . . Explosive 33 | . . 1 . . 3 4 6 . 6 . . 9 . . . . 4 . . . . . Electromagnetic 1 | . . . . . . . 1 . . . . . . . . . . . . . . . Robot Hit Streak 34 | 2 10 13 14 . 17 24 20 18 19 34 . . 5 . . . 6 . . . . . Robot Miss Streak 4 | 1 2 3 1 . 1 2 4 1 2 1 . . . . . . . . . . . . Penetration Max . | . . . . . . . . . . . . . . . . . . . . . . . Secondary Targets 3 | . . . . . . . 1 . 2 . . . . . . . . . . . . . Max Gunslinging Chain 1 | . . . . . . . 1 . 1 . . . . . . . . . . . . . Shots Hit Robots 957 | 3 46 115 21 . 13 180 80 25 33 57 . 65 10 3 1 19 157 . 21 83 25 . Core Hits 384 | 4 23 48 14 . 15 65 39 8 27 22 . 40 3 3 . 3 46 . 2 19 3 . Critical Kills 7 | . . . . . . . . . 1 1 . 1 . . . . 3 . . 1 . . Critical Parts Destroyed 62 | . . . . . . . . 1 . 2 . 11 2 . . 2 24 . 4 14 2 . Critical Strikes 108 | . 6 8 2 . 1 5 . 1 1 3 . 15 2 . . 2 33 . 5 19 5 . Burn 3 | . 3 . . . . . . . . . . . . . . . . . . . . . Destroy 2 | . . . . . . . . 1 1 . . . . . . . . . . . . . Blast 19 | . 3 8 2 . 1 5 . . . . . . . . . . . . . . . . Smash 69 | . . . . . . . . . . 3 . 13 2 . . 2 28 . 4 15 2 . Sever 15 | . . . . . . . . . . . . 2 . . . . 5 . 1 4 3 . Melee Attacks 685 | . . . . . . . . . . 39 . 122 7 10 36 28 284 . 35 99 25 . Impact 407 | . . . . . . . . . . 39 . 78 6 5 10 18 165 . 26 49 11 . Slashing 278 | . . . . . . . . . . . . 44 1 5 26 10 119 . 9 50 14 . Piercing . | . . . . . . . . . . . . . . . . . . . . . . . Sneak Attacks 92 | . . . . . . . . . . 1 . 19 . . 1 . 39 . 2 20 10 . Combat Hostiles 18 | . . . . . . . . . . . . 2 . . . . 2 . . 14 . . Follow-up Attacks 95 | . . . . . . . . . . 2 . 9 2 . . 6 31 . 7 27 11 . Damage Inflicted 51441 | 45 636 3269 604 . 600 5101 2126 440 1466 2475 . 7144 651 408 172 1562 13767 . 1736 7385 1854 . Guns 3582 | 45 308 . . . . 81 1458 440 600 650 . . . . . . . . . . . . Cannons 9027 | . 328 3042 604 . 321 4535 . . . 79 . . 118 . . . . . . . . . Explosions 6243 | . . 199 . . 279 485 668 . 866 891 . 1845 . . . . 1010 . . . . . Melee 32561 | . . . . . . . . . . 855 . 5299 533 408 172 1562 12757 . 1736 7385 1854 . Ramming 28 | . . 28 . . . . . . . . . . . . . . . . . . . . Kinetic 12180 | 7 442 3042 604 . 321 4616 1458 440 600 650 . . . . . . . . . . . . Thermal 429 | 38 194 . . . . . . . . 79 . . 118 . . . . . . . . . Explosive 6243 | . . 199 . . 279 485 668 . 866 891 . 1845 . . . . 1010 . . . . . Electromagnetic . | . . . . . . . . . . . . . . . . . . . . . . . Impact 17059 | . . . . . . . . . . 855 . 2670 466 . . 1105 7062 . 1298 2942 661 . Slashing 15502 | . . . . . . . . . . . . 2629 67 408 172 457 5695 . 438 4443 1193 . Piercing . | . . . . . . . . . . . . . . . . . . . . . . . Highest Corruption 5 | . . . 2 2 2 3 4 4 4 1 5 5 . . . . 1 . . . . . Average Corruption 3 | . . . 2 2 2 3 3 4 4 1 3 2 . . . . 1 . . . . . Corruption Purged 9 | . . . . . . . . . . . . 7 . . . . 2 . . . . . Corruption Blocked 3 | . . . . . . . . . . . . . . . . . . 3 . . . . Effects 51 | . . . . 1 2 17 12 7 9 . . 3 . . . . . . . . . . Message Errors 12 | . . . . . 1 1 3 3 3 . . 1 . . . . . . . . . . Matter Fused 11 | . . . . . . 4 4 1 1 . . 1 . . . . . . . . . . Heat Flow Errors 4 | . . . . . . 1 1 1 1 . . . . . . . . . . . . . Energy Discharges 5 | . . . . 1 . 3 . 1 . . . . . . . . . . . . . . Data Loss (minor) 6 | . . . . . . 2 2 . 1 . . 1 . . . . . . . . . . Data Loss (major) 4 | . . . . . . 2 . 1 1 . . . . . . . . . . . . . Misfires 3 | . . . . . . 1 2 . . . . . . . . . . . . . . . Alerts 2 | . . . . . 1 . . . 1 . . . . . . . . . . . . . Weapon Failures 4 | . . . . . . 3 . . 1 . . . . . . . . . . . . . Overload Shots 5 | . . . . . . . . . . 4 . 1 . . . . . . . . . . Overflow Damage 11196 | . 4 87 10 . 4 109 32 . 132 266 . 1850 294 . 112 444 4627 . 699 2158 368 . Projectiles 225 | . 4 77 10 . 4 109 . . . 21 . . . . . . . . . . . . Explosions 197 | . . 10 . . . . 32 . 132 . . 23 . . . . . . . . . . Melee 10774 | . . . . . . . . . . 245 . 1827 294 . 112 444 4627 . 699 2158 368 . Knockbacks 136 | . 3 22 4 . 2 34 . . . 3 . 9 . . . 3 39 . 6 8 3 . Impact 68 | . . . . . . . . . . 3 . 9 . . . 3 37 . 6 7 3 . Kinetic 62 | . 3 19 4 . 2 34 . . . . . . . . . . . . . . . . Secondary 6 | . . 3 . . . . . . . . . . . . . . 2 . . 1 . . Self-Inflicted Damage 173 | . . 14 . . . . . . 44 91 . . . . . . 24 . . . . . Shots 4 | . . . . . . . . . 1 2 . . . . . . 1 . . . . . Rammed 1 | . . 1 . . . . . . . . . . . . . . . . . . . . Targets Rammed 1 | . . 1 . . . . . . . . . . . . . . . . . . . . Kicked . | . . . . . . . . . . . . . . . . . . . . . . . Crushed . | . . . . . . . . . . . . . . . . . . . . . . . Highest Temperature 317 | 60 110 314 41 . 65 150 111 168 252 120 . 72 252 . . 66 317 . 138 2 . . Average Temperature 50 | 29 34 76 14 . 29 16 22 51 58 21 . 25 129 . . 28 100 . 40 2 . . Received Heat Transfer 1720 | . 45 279 40 . . 364 150 18 60 27 . 150 30 . . 48 298 . 45 124 42 . Siege Activations . | . . . . . . . . . . . . . . . . . . . . . . . Robots Corrupted 68 | . . 2 . . . . . . . 5 . 10 2 . . 2 33 . 4 8 2 . Combat Hostiles 37 | . . . . . . . . . . 2 . 4 2 . . 2 17 . 1 8 1 . Parts Fried 118 | . . 5 . . . . . . . 4 . 15 2 . . 1 66 . 5 19 1 . Impact Corruptions 207 | . . 2 . . . . . . . 9 . 36 5 . . 13 94 . 15 25 8 . Robots Melted . | . . . . . . . . . . . . . . . . . . . . . . . Combat Hostiles . | . . . . . . . . . . . . . . . . . . . . . . . Parts Melted 6 | 1 1 . 1 . . . . . . 2 . . . . . . . . . 1 . . Heat Transferred 1173 | 111 777 . . . . . . . . 137 . . 148 . . . . . . . . . Parts Sabotaged . | . . . . . . . . . . . . . . . . . . . . . . . Parts Stolen . | . . . . . . . . . . . . . . . . . . . . . . . Parts Stripped . | . . . . . . . . . . . . . . . . . . . . . . . Power Chain Reactions . | . . . . . . . . . . . . . . . . . . . . . . . Alert | -11 -10 -9 -9 -9 -8 -8 -8 -8 -8 -7 -7 -7 -7 -7 -7 -6 -6 -6 -6 -6 -6 -6 ------- Run | Yrd Mat Mat Min Exi Min Mat Gar Mat Gar Fac Was Fac Low Low Dat Pro Fac Was Fac Ext Cet Arc Peak Influence 853 | 10 230 709 455 . 308 613 853 471 591 614 132 524 . . . . 729 58 308 685 216 287 Initial 358 | . 5 11 113 . . 101 133 358 39 268 132 78 . . . . . 43 35 . . 5 Average 284 | 3 85 323 261 . 123 355 565 373 345 360 126 272 . . . . 360 50 70 236 130 139 Maximum Alert Level 3 | . 1 3 2 . 1 2 3 2 2 2 . 2 . . . . 3 . 1 2 1 1 Low Security (%) 35 | 100 77 19 25 . 68 18 2 3 26 . 100 19 . . . . 40 100 91 41 58 53 Level 1 38 | . 22 60 63 . 31 36 19 50 16 65 . 69 . . . . 10 . 8 44 41 46 Level 2 24 | . . 17 11 . . 44 41 45 56 34 . 10 . . . . 48 . . 14 . . Level 3 1 | . . 2 . . . . 36 . . . . . . . . . . . . . . . Level 4 . | . . . . . . . . . . . . . . . . . . . . . . . Level 5 . | . . . . . . . . . . . . . . . . . . . . . . . High Security . | . . . . . . . . . . . . . . . . . . . . . . . Max Security . | . . . . . . . . . . . . . . . . . . . . . . . Squads Dispatched 36 | . . 1 1 . . 3 . 1 . 6 . 6 . . . . 12 . 2 4 . . Investigation 20 | . . . 1 . . 2 . . . 3 . 3 . . . . 8 . 1 2 . . Extermination 6 | . . . . . . . . . . 1 . 1 . . . . 3 . 1 . . . Reinforcement 9 | . . 1 . . . 1 . 1 . 1 . 2 . . . . 1 . . 2 . . Assault 1 | . . . . . . . . . . 1 . . . . . . . . . . . . Garrison . | . . . . . . . . . . . . . . . . . . . . . . . Intercept . | . . . . . . . . . . . . . . . . . . . . . . . Searches Triggered . | . . . . . . . . . . . . . . . . . . . . . . . Construction Impeded 1 | . . . . . . . . . . . . . . . . . . . . 1 . . Haulers Reinforced 1 | . . . . . . . . . . . . 1 . . . . . . . . . . Active Scanning Responses . | . . . . . . . . . . . . . . . . . . . . . . . Cargo Convoy Interrupts 3 | . . . . . . . . . . 1 . 1 . . . . 1 . . . . . Stealth | -11 -10 -9 -9 -9 -8 -8 -8 -8 -8 -7 -7 -7 -7 -7 -7 -6 -6 -6 -6 -6 -6 -6 --------- Run | Yrd Mat Mat Min Exi Min Mat Gar Mat Gar Fac Was Fac Low Low Dat Pro Fac Was Fac Ext Cet Arc Distress Signals 17 | . 2 2 . . . 1 . . . 1 . 3 . . . . 3 . 1 2 2 . Communications Jammed . | . . . . . . . . . . . . . . . . . . . . . . . Distress Signals . | . . . . . . . . . . . . . . . . . . . . . . . Times Spotted 397 | . 19 47 8 . 8 43 20 6 16 24 6 42 5 1 4 8 84 5 9 30 12 . Peak Tracking Total 11 | . 5 11 2 . 4 6 6 2 8 7 6 7 4 1 4 2 11 5 6 6 5 . Tactical Retreats 46 | . 3 5 . . 1 . 2 2 1 3 . 6 . 1 . 1 18 . 2 . 1 . Traps | -11 -10 -9 -9 -9 -8 -8 -8 -8 -8 -7 -7 -7 -7 -7 -7 -6 -6 -6 -6 -6 -6 -6 ------- Run | Yrd Mat Mat Min Exi Min Mat Gar Mat Gar Fac Was Fac Low Low Dat Pro Fac Was Fac Ext Cet Arc Traps Triggered 22 | . 2 . 1 . . 1 1 . 5 2 . 7 . . . . 1 . . 2 . . Indirectly . | . . . . . . . . . . . . . . . . . . . . . . . Trap Hack Attempts . | . . . . . . . . . . . . . . . . . . . . . . . Triggered . | . . . . . . . . . . . . . . . . . . . . . . . Disarmed . | . . . . . . . . . . . . . . . . . . . . . . . Reprogrammed 6 | . . . . . . . . . . . . 4 . . . . . . . 2 . . Reused 1 | . . . . . . . . . . . . 1 . . . . . . . . . . Traps Extracted 3 | . . . 3 . . . . . . . . . . . . . . . . . . . Installed . | . . . . . . . . . . . . . . . . . . . . . . . Triggered 3 | . . . . . . . . . . . . 1 . . . . 1 . . 1 . . Most Traps Carried 3 | . . . 3 3 . . . . . . . . . . . . . . . . . . Machines | -11 -10 -9 -9 -9 -8 -8 -8 -8 -8 -7 -7 -7 -7 -7 -7 -6 -6 -6 -6 -6 -6 -6 ---------- Run | Yrd Mat Mat Min Exi Min Mat Gar Mat Gar Fac Was Fac Low Low Dat Pro Fac Was Fac Ext Cet Arc Machines Disabled 19 | . . 1 . . . 2 1 . . 4 . 3 . 1 1 . 4 . . 1 . 1 Max in Single Turn 2 | . . 1 . . . 1 1 . . 2 . 1 . 1 1 . 1 . . 1 . . Garrison Access 12 | . . . . . . . . . . 2 . 4 . . . . 4 . 2 . . . Machines Repaired . | . . . . . . . . . . . . . . . . . . . . . . . Machines Dismantled . | . . . . . . . . . . . . . . . . . . . . . . . Machines Sabotaged . | . . . . . . . . . . . . . . . . . . . . . . . Overloaded Fab Kills . | . . . . . . . . . . . . . . . . . . . . . . . Hacking | -11 -10 -9 -9 -9 -8 -8 -8 -8 -8 -7 -7 -7 -7 -7 -7 -6 -6 -6 -6 -6 -6 -6 --------- Run | Yrd Mat Mat Min Exi Min Mat Gar Mat Gar Fac Was Fac Low Low Dat Pro Fac Was Fac Ext Cet Arc Machines Accessed 144 | . 8 13 1 1 . 11 3 5 3 13 . 25 4 . 4 . 30 . 9 12 2 . Terminals 92 | . 6 10 . . . 10 3 4 3 10 . 13 1 . . . 13 . 6 11 2 . Fabricators 7 | . . . . . . . . . . . . 2 . . . . 4 . 1 . . . Repair Stations 8 | . . 2 . . . . . . . . . 5 . . . . 1 . . . . . Recycling Units 9 | . 2 . . . . . . . . . . . . . . . 6 . . 1 . . Scanalyzers 5 | . . 1 . . . . . . . 1 . 1 . . . . 2 . . . . . Garrison Access 14 | . . . . . . 1 . 1 . 2 . 4 . . . . 4 . 2 . . . Total Hacks 438 | . 25 44 1 1 . 34 6 16 5 39 . 73 9 . 24 . 90 . 22 43 6 . Successful 326 | . 22 27 1 1 . 24 3 11 4 29 . 51 9 . 24 . 76 . 16 23 5 . Failed 111 | . 3 17 . . . 10 3 5 1 9 . 22 . . . . 14 . 6 20 1 . Catastrophic 12 | . . . . . . . . . . 3 . 3 . . . . 3 . 2 1 . . Database Lockouts 1 | . . . . . . . . . . 1 . . . . . . . . . . . . Manual 156 | . 12 23 . 1 . 11 . 13 1 17 . 16 . . . . 35 . 6 20 1 . Terminals 305 | . 22 35 . . . 33 6 15 5 32 . 44 1 . . . 47 . 17 42 6 . Fabricators 16 | . . . . . . . . . . . . 3 . . . . 12 . 1 . . . Repair Stations 26 | . . 7 . . . . . . . . . 15 . . . . 4 . . . . . Recycling Units 20 | . 3 . . . . . . . . . . . . . . . 16 . . 1 . . Scanalyzers 17 | . . 2 . . . . . . . 4 . 4 . . . . 7 . . . . . Garrison Access 20 | . . . . . . 1 . 1 . 3 . 7 . . . . 4 . 4 . . . Terminal Hacks 202 | . 18 14 1 1 . 20 3 7 3 17 . 24 9 . 24 . 28 . 11 17 5 . Record 19 | . . . . . . . . . . . . . 7 . 8 . . . . . 4 . Part Schematic 13 | . . . . . . . . . . . . . . . 10 . 3 . . . . . Robot Schematic 5 | . . . . . . . . . . . . 1 . . 3 . 1 . . . . . Robot Analysis 20 | . 4 1 . . . 2 . 1 . 5 . 2 . . . . 3 . . 2 . . Prototype ID Bank 15 | . . 1 . . . 2 . . . 1 . 2 . . 3 . 2 . 2 2 . . Open Door 9 | . . . 1 . . . . . 1 . . . 2 . . . . . 1 3 1 . Level Access Points 1 | . . 1 . . . . . . . . . . . . . . . . . . . . Branch Access Points 8 | . 1 2 . . . 1 . . . 1 . 1 . . . . 1 . 1 . . . Emergency Access Points 6 | . 1 1 . . . . 1 . 1 . . 2 . . . . . . . . . . Machine Index 4 | . . . . . . . . 1 . 1 . . . . . . 1 . 1 . . . Terminal Index 3 | . . . . . . 1 . . . . . 1 . . . . 1 . . . . . Repair Station Index 1 | . . . . . . . . . . . . 1 . . . . . . . . . . Scanalyzer Index 2 | . . . . . . . . . . 1 . 1 . . . . . . . . . . Garrison Index 1 | . . . . . . . . . . . . 1 . . . . . . . . . . Alert Level 13 | . 2 1 . . . 2 . 1 . 1 . . . . . . 4 . 1 1 . . Unreport Threat 25 | . 3 3 . . . 4 . 2 . . . . . . . . 7 . 1 5 . . Locate Traps 24 | . 3 . . . . 3 . 1 . 4 . 7 . . . . . . 3 3 . . Reprogram Traps 2 | . . . . . . . . . . . . 1 . . . . . . . 1 . . Dispatch Records 1 | . 1 . . . . . . . . . . . . . . . . . . . . . Patrol Status 1 | . . . . . . . . . . . . 1 . . . . . . . . . . Transport Status 1 | . . . . . . 1 . . . . . . . . . . . . . . . . Investigation Status 1 | . 1 . . . . . . . . . . . . . . . . . . . . . Recall Investigation 3 | . . . . . . 1 . . . . . . . . . . 2 . . . . . Recall Extermination 2 | . . . . . . . . . . 1 . 1 . . . . . . . . . . Hauler Manifests 6 | . 2 2 . . . 1 . . . . . . . . . . 1 . . . . . Registered Components 1 | . . . . . . 1 . . . . . . . . . . . . . . . . Zone Layout 11 | . . 2 . . . 1 . 1 . 2 . 2 . . . . 2 . 1 . . . Garrison Registry 1 | . . . . . . . 1 . . . . . . . . . . . . . . . Patrol Navigation 2 | . . . . . . . 1 . 1 . . . . . . . . . . . . . Derelict Proto ID Bank 1 | . . . . 1 . . . . . . . . . . . . . . . . . . Fabricator Hacks 13 | . . . . . . . . . . . . 3 . . . . 9 . 1 . . . Network Status 3 | . . . . . . . . . . . . 1 . . . . 1 . 1 . . . Load Schematic 4 | . . . . . . . . . . . . . . . . . 4 . . . . . Build 6 | . . . . . . . . . . . . 2 . . . . 4 . . . . . Repair Station Hacks 19 | . . 4 . . . . . . . . . 11 . . . . 4 . . . . . Scan Component 10 | . . 2 . . . . . . . . . 6 . . . . 2 . . . . . Repair 9 | . . 2 . . . . . . . . . 5 . . . . 2 . . . . . Recycling Unit Hacks 12 | . 2 . . . . . . . . . . . . . . . 10 . . . . . Report Inventory 11 | . 2 . . . . . . . . . . . . . . . 9 . . . . . Retrieve Components 1 | . . . . . . . . . . . . . . . . . 1 . . . . . Scanalyzer 16 | . . 2 . . . . . . . 4 . 3 . . . . 7 . . . . . Insert Component 10 | . . 1 . . . . . . . 2 . 2 . . . . 5 . . . . . Analyze 6 | . . 1 . . . . . . . 2 . 1 . . . . 2 . . . . . Garrison Access Hacks 14 | . . . . . . 1 . 1 . 2 . 4 . . . . 4 . 2 . . . Unlock Access 2 | . . . . . . 1 . 1 . . . . . . . . . . . . . . Seal Access 12 | . . . . . . . . . . 2 . 4 . . . . 4 . 2 . . . Unauthorized Hacks 50 | . 2 7 . . . 3 . 3 1 6 . 6 . . . . 14 . 2 6 . . Terminals 40 | . 2 7 . . . 3 . 3 1 6 . 6 . . . . 5 . 2 5 . . Track 6 | . . 1 . . . . . . . 2 . 2 . . . . 1 . . . . . Assimilate 4 | . . . . . . . . 1 . 1 . 1 . . . . . . . 1 . . Botnet 22 | . 2 4 . . . 3 . 2 1 2 . 2 . . . . 2 . 2 2 . . Disrupt 3 | . . . . . . . . . . . . . . . . . 1 . . 2 . . Operators 5 | . . 2 . . . . . . . 1 . 1 . . . . 1 . . . . . Fabricators 3 | . . . . . . . . . . . . . . . . . 3 . . . . . Prioritize 3 | . . . . . . . . . . . . . . . . . 3 . . . . . Repair Stations . | . . . . . . . . . . . . . . . . . . . . . . . Recycling Units 7 | . . . . . . . . . . . . . . . . . 6 . . 1 . . Monitor 2 | . . . . . . . . . . . . . . . . . 2 . . . . . Reject 3 | . . . . . . . . . . . . . . . . . 3 . . . . . Recyclers 1 | . . . . . . . . . . . . . . . . . 1 . . . . . Mask 1 | . . . . . . . . . . . . . . . . . . . . 1 . . Scanalyzers . | . . . . . . . . . . . . . . . . . . . . . . . Garrison Access . | . . . . . . . . . . . . . . . . . . . . . . . Data Cores Recovered 5 | . . 1 . . . 1 . 2 . . . . . . . . 1 . . . . . Used 1 | . . . . . . . . 1 . . . . . . . . . . . . . . Hacking Detections 102 | . 6 13 . . . 9 2 5 3 11 . 20 . . . . 22 . 4 6 1 . Full Trace Events 19 | . . 2 . . . 1 1 . . 3 . 3 . . . . 8 . 1 . . . Feedback Events 1 | . . . . . . . . . . . . . . . . . 1 . . . . . Corruption 1 | . . . . . . . . . . . . . . . . . 1 . . . . . Feedback Blocked . | . . . . . . . . . . . . . . . . . . . . . . . Robot Schematics Acquired 5 | . . . . . . . . . . . . 1 . . 3 . 1 . . . . . Robots Built . | . . . . . . . . . . . . . . . . . . . . . . . Authchips . | . . . . . . . . . . . . . . . . . . . . . . . Time . | . . . . . . . . . . . . . . . . . . . . . . . Total Robot Build Rating . | . . . . . . . . . . . . . . . . . . . . . . . Part Schematics Acquired 18 | . . 1 . . . . . . . 2 . . . . 10 . 5 . . . . . Parts Built 10 | . . . . . . . . . . . . 4 . . . . 6 . . . . . Authchips . | . . . . . . . . . . . . . . . . . . . . . . . Time 522 | . . . . . . . . . . . . 100 . . . . 422 . . . . . Total Part Build Rating 66 | . . . . . . . . . . . . 22 . . . . 44 . . . . . Parts Repaired 9 | . . 2 . . . . . . . . . 5 . . . . 2 . . . . . Time 410 | . . 64 . . . . . . . . . 252 . . . . 94 . . . . . Parts Recycled . | . . . . . . . . . . . . . . . . . . . . . . . Recycled Matter . | . . . . . . . . . . . . . . . . . . . . . . . Retrieved Matter . | . . . . . . . . . . . . . . . . . . . . . . . Retrieved Components 3 | . . . . . . . . . . . . . . . . . 3 . . . . . Parts Scanalyzed 5 | . . 1 . . . . . . . 2 . 1 . . . . 1 . . . . . Part Schematics Acquired 5 | . . 1 . . . . . . . 2 . . . . . . 2 . . . . . Parts Damaged . | . . . . . . . . . . . . . . . . . . . . . . . Bothacking | -11 -10 -9 -9 -9 -8 -8 -8 -8 -8 -7 -7 -7 -7 -7 -7 -6 -6 -6 -6 -6 -6 -6 ------------ Run | Yrd Mat Mat Min Exi Min Mat Gar Mat Gar Fac Was Fac Low Low Dat Pro Fac Was Fac Ext Cet Arc Used RIF Installer . | . . . . . . . . . . . . . . . . . . . . . . . Robots Hacked . | . . . . . . . . . . . . . . . . . . . . . . . Non-combat . | . . . . . . . . . . . . . . . . . . . . . . . Combat . | . . . . . . . . . . . . . . . . . . . . . . . Robot Hacks Applied . | . . . . . . . . . . . . . . . . . . . . . . . Relay Couplers Released . | . . . . . . . . . . . . . . . . . . . . . . . Fabnet Peak Effective % . | . . . . . . . . . . . . . . . . . . . . . . . Robots Rewired 22 | . . . . . . . . . . . . . . . . . . . . 22 . . Allies Hacked . | . . . . . . . . . . . . . . . . . . . . . . . Hacks Repelled . | . . . . . . . . . . . . . . . . . . . . . . . Allies | -11 -10 -9 -9 -9 -8 -8 -8 -8 -8 -7 -7 -7 -7 -7 -7 -6 -6 -6 -6 -6 -6 -6 -------- Run | Yrd Mat Mat Min Exi Min Mat Gar Mat Gar Fac Was Fac Low Low Dat Pro Fac Was Fac Ext Cet Arc Total Allies 34 | . . . 1 . . . . . . 1 . 1 . . . . . . . 26 5 . Largest Group 24 | . . . 1 . . . . . . 1 . 1 . . . . . . . 24 24 21 Highest-Rated Group 1087 | . . . 31 . . . . . . 10 . 10 . . . . . . . 813 1087 934 Highest-Rated Ally 159 | . . . 31 . . . . . . 10 . 10 . . . . . . . 159 153 96 Total Orders 17 | . . . . . . . . . . . . 1 . . . . . . . 15 1 . STAY 17 | . . . . . . . . . . . . 1 . . . . . . . 15 1 . Ally Attacks 222 | . . . 9 . . . . . . . . . . . . . . . . 60 78 75 Total Damage 5863 | . . . 125 . . . . . . . . . . . . . . . . 1522 1762 2454 Kills 41 | . . . 3 . . . . . . . . . . . . . . . . 9 10 19 Allies Corrupted 1 | . . . . . . . . . . . . . . . . . . . . . 1 . Allies Melted . | . . . . . . . . . . . . . . . . . . . . . . . Intel | -11 -10 -9 -9 -9 -8 -8 -8 -8 -8 -7 -7 -7 -7 -7 -7 -6 -6 -6 -6 -6 -6 -6 ------- Run | Yrd Mat Mat Min Exi Min Mat Gar Mat Gar Fac Was Fac Low Low Dat Pro Fac Was Fac Ext Cet Arc Robot Analysis Total 20 | . 4 1 . . . 2 . 1 . 5 . 2 . . . . 3 . . 2 . . Derelict Logs Recovered 7 | . . . 2 . . . . . . . . . 2 2 . 1 . . . . . . Drone Launches . | . . . . . . . . . . . . . . . . . . . . . . . Drone Recoveries . | . . . . . . . . . . . . . . . . . . . . . . . Exploration | -11 -10 -9 -9 -9 -8 -8 -8 -8 -8 -7 -7 -7 -7 -7 -7 -6 -6 -6 -6 -6 -6 -6 ------------- Run | Yrd Mat Mat Min Exi Min Mat Gar Mat Gar Fac Was Fac Low Low Dat Pro Fac Was Fac Ext Cet Arc Turns Passed 15786 | 63 923 1552 496 141 300 1035 540 415 391 856 46 1950 369 592 125 410 2805 35 812 1438 415 77 Spaces Moved 24034 | 49 724 2026 882 307 586 1065 833 475 630 1497 86 3689 925 750 161 626 5186 101 821 1933 581 101 Core 8 | 6 2 . . . . . . . . . . . . . . . . . . . . . Treads . | . . . . . . . . . . . . . . . . . . . . . . . Legs . | . . . . . . . . . . . . . . . . . . . . . . . Wheels 777 | 43 722 12 . . . . . . . . . . . . . . . . . . . . Hover 23249 | . . 2014 882 307 586 1065 833 475 630 1497 86 3689 925 750 161 626 5186 101 821 1933 581 101 Flight . | . . . . . . . . . . . . . . . . . . . . . . . Fastest Speed 15 | 50 100 44 44 44 44 42 42 42 42 30 34 34 34 34 34 34 30 34 15 15 15 34 Average Speed 41 | 93 100 48 44 44 44 42 42 42 42 37 46 36 34 75 34 34 35 34 33 33 33 34 Slowest Speed 150 | 100 150 115 44 44 44 44 42 42 42 94 98 98 94 94 34 34 94 34 34 34 92 34 Overloaded Moves 95 | . . . . . . . . . . 14 . . . . . . 8 . 2 61 10 . Propulsion Burnouts . | . . . . . . . . . . . . . . . . . . . . . . . Robots Hopped . | . . . . . . . . . . . . . . . . . . . . . . . Cave-ins Triggered . | . . . . . . . . . . . . . . . . . . . . . . . Exploration Rate (%) 75 | 4 94 98 98 62 98 91 59 44 73 59 84 79 94 78 80 60 86 88 32 98 91 89 Regions Visited 22 Branch Regions 10 Pre-discovered Areas 6 | . . . 2 . . . . . . . . . 2 1 1 . . . . . . . Known Exits Taken 6 | . . 1 . . 1 1 . 1 . . . 1 . . . . . . 1 . . . Unknown Exits Taken 10 | 1 1 . 1 1 . . . . . . . . 1 1 1 1 . . . 1 1 . Scrap Searched 11 | . . . 2 . 1 . . . . . . . 2 4 . 2 . . . . . . Spaces Dug 208 | . . . . . 12 14 2 9 27 21 . 28 . 4 3 4 67 . 17 . . . Terrain Destroyed 448 | . . 28 4 . 40 55 22 11 29 54 . 61 . 4 3 4 115 . 18 . . . Melee 109 | . . . . . . . . . . 17 . 27 . 4 3 3 49 . 6 . . . Projectile 103 | . . 18 4 . 5 26 . 11 . 4 . 1 . . . 1 21 . 12 . . . AOE 236 | . . 10 . . 35 29 22 . 29 33 . 33 . . . . 45 . . . . . Terrain Rammed . | . . . . . . . . . . . . . . . . . . . . . . . Walls Destroyed . | . . . . . . . . . . . . . . . . . . . . . . . Machines Disabled . | . . . . . . . . . . . . . . . . . . . . . . . Actions | -11 -10 -9 -9 -9 -8 -8 -8 -8 -8 -7 -7 -7 -7 -7 -7 -6 -6 -6 -6 -6 -6 -6 --------- Run | Yrd Mat Mat Min Exi Min Mat Gar Mat Gar Fac Was Fac Low Low Dat Pro Fac Was Fac Ext Cet Arc Total 28503 | 57 858 2424 951 312 604 1397 942 661 715 1700 91 4168 966 767 202 796 5895 100 1304 2666 784 143 Wait 2646 | . 71 220 43 . 1 129 24 154 18 72 . 263 14 . 9 136 321 . 430 536 163 42 Move 24011 | 48 723 2025 881 306 585 1064 830 475 627 1497 85 3688 924 749 160 625 5186 100 820 1932 580 101 Hop . | . . . . . . . . . . . . . . . . . . . . . . . Pick Up 70 | . 2 7 1 . . 4 2 3 . 7 1 13 . . 3 . 13 . . 14 . . Fast Attach 129 | 6 9 17 1 3 . 12 4 . . 16 3 26 5 . . . 20 . . 2 5 . Attach 10 | . . . . . 1 . . . . . 1 4 . . . . 4 . . . . . Detach 4 | . . . . . . 1 . . . 1 . 1 . . . . 1 . . . . . Swap 132 | . 3 10 3 . 4 10 8 2 9 16 . 14 3 1 1 2 36 . 9 1 . . Drop 159 | . 5 21 1 3 . 15 5 2 . 22 1 24 5 . 3 . 31 . . 16 5 . Fire 454 | 3 33 85 18 . 12 123 50 23 26 27 . 10 4 . . 1 25 . 14 . . . Melee 468 | . . . . . . . . . . 32 . 88 5 8 26 19 191 . 22 63 14 . Ram 1 | . . 1 . . . . . . . . . . . . . . . . . . . . Kick . | . . . . . . . . . . . . . . . . . . . . . . . Crush . | . . . . . . . . . . . . . . . . . . . . . . . Escape Stasis 63 | . . . . . . . . . 30 . . 13 . . . . . . . 20 . . Rewire 52 | . . . . . . . . . . . . . . . . . . . . 52 . . Trap . | . . . . . . . . . . . . . . . . . . . . . . . Miscellaneous 304 | . 12 38 3 . 1 39 19 2 5 10 . 24 6 9 . 13 67 . 9 30 17 . Route ------- -11/Scrapyard -10/Materials (discovered 4 exits: *Mat x2 / *Min / [*Sub]) -9/Materials (discovered 5 exits: *Mat x3 / *Min x2) -9/Mines (discovered 3 exits: *Mat x2 / *Exi) -9/Exiles -8/Mines (discovered 2 exits: *Mat x2) -8/Materials (discovered 3 exits: *Fac x2 / Gar) -8/Garrison (discovered 3 exits: *Mat x3) -8/Materials (discovered 2 exits: *Fac / Gar) -8/Garrison (discovered 3 exits: *Fac x3) -7/Factory (discovered 5 exits: *Fac / Sto x2 / Low x2) -7/Waste -7/Factory (discovered 7 exits: *Fac x3 / *Sto x2 / *Low x2) -7/Lower Caves -7/Lower Caves (discovered 2 exits: *Fac / *Dat) -7/Data Miner -6/Proximity Caves -6/Factory (discovered 6 exits: *Fac x2 / Low x2 / *Ext x2) -6/Waste -6/Factory (discovered 6 exits: *Fac x2 / Low x2 / *Ext x2) -6/Extension (discovered 3 exits: *Fac x2 / *Cet) -6/Cetus (discovered 3 exits: *Fac x2 / *Arc) -6/Archives (discovered 3 exits: *Fac / [*Hub x2]) History --------- Turn | Location | Event 7 | -11/Scrapyard | Upgraded with Propulsion slot (x1) 7 | -11/Scrapyard | Upgraded with Utility slot (x1) 7 | -11/Scrapyard | Upgraded with Weapon slot (x1) 13 | -11/Scrapyard | Discovered new exit (range 15) 64 | -11/Scrapyard | Entered Materials 171 | -10/Materials | Discovered new exit (range 16) 286 | -10/Materials | Discovered new exit (range 8) 306 | -10/Materials | Build established: Mutant 401 | -10/Materials | Discovered new exit (range 5) 439 | -10/Materials | Identified exit to Mines 934 | -10/Materials | Discovered new exit (range 15) 987 | -10/Materials | Entered another Materials area 989 | -9/Materials | Reached level 2 989 | -9/Materials | Reached level 3 989 | -9/Materials | Reached level 4 998 | -9/Materials | Upgraded with Propulsion slot (x2) 1011 | -9/Materials | Upgraded with Utility slot (x1) 1021 | -9/Materials | Identified exit to Mines 1044 | -9/Materials | Upgraded with Utility slot (x1) 1205 | -9/Materials | Discovered new exit (range 3) 1265 | -9/Materials | Identified exit to Materials 1328 | -9/Materials | Build established: Hacker-Mutant 1352 | -9/Materials | Reached level 5 1473 | -9/Materials | Reached level 6 1505 | -9/Materials | Destroyed 7 combat bots 1734 | -9/Materials | Repaired Broken Airjet 2045 | -9/Materials | Upgraded with Utility slot (x1) 2050 | -9/Materials | Reached level 7 2289 | -9/Materials | Upgraded with Propulsion slot (x1) 2415 | -9/Materials | Repaired Reaction Control System 2539 | -9/Materials | Entered Mines 2582 | -9/Mines | Discovered exit to Materials (range 9) 2618 | -9/Mines | Upgraded with Utility slot (x1) 2677 | -9/Mines | Learned location of Zion (-6) 2681 | -9/Mines | Escorted by a lone wolf Derelict 2697 | -9/Mines | Discovered exit to Materials (range 6) 2721 | -9/Mines | Deemed a non-threat by the Exiles lab entrance 2721 | -9/Mines | Discovered new exit (range 5) 2765 | -9/Mines | Reached level 8 2784 | -9/Mines | Met a Derelict shopkeep closing up shop 3035 | -9/Mines | Entered Exiles 3035 | -9/Exiles | Accompanied by 1 ally 3047 | -9/Exiles | Met 8R-AWN 3055 | -9/Exiles | Met EX-HEX 3072 | -9/Exiles | Met EX-DEC 3105 | -9/Exiles | Met EX-BIN 3112 | -9/Exiles | Aligned with FarCom system 3112 | -9/Exiles | Given EX-Vault access code 3123 | -9/Exiles | Opened EX-Vault 3126 | -9/Exiles | Found Modified TNC 3137 | -9/Exiles | Warned to stay clear of 0b10 Research branches 3170 | -9/Exiles | Discovered new exit (range 15) 3176 | -9/Exiles | Left Exiles lab with Modified TNC 3176 | -9/Exiles | Entered Mines 3176 | -8/Mines | Upgraded with Utility slot (x1) 3236 | -8/Mines | Found DCF Scrap (15 items) 3281 | -8/Mines | Discovered exit to Materials (range 16) 3325 | -8/Mines | Reached level 9 3383 | -8/Mines | Discovered exit to Materials (range 9) 3404 | -8/Mines | Destroyed 8 combat bots 3476 | -8/Mines | Entered Materials 3478 | -8/Materials | Reached level 10 3577 | -8/Materials | Reached level 11 4107 | -8/Materials | Reached level 12 4176 | -8/Materials | Destroyed 9 combat bots 4189 | -8/Materials | Discovered new exit (range 5) 4338 | -8/Materials | Upgraded with Weapon slot (x1) 4350 | -8/Materials | Discovered new exit (range 15) 4509 | -8/Materials | Identified exit to Garrison 4511 | -8/Materials | Entered Garrison 4523 | -8/Garrison | Triggered checkpoint 4595 | -8/Garrison | Reached level 13 4630 | -8/Garrison | Build established: Hacker-Tank 4687 | -8/Garrison | Discovered new exit (range 64) 4687 | -8/Garrison | Discovered new exit (range 26) 4687 | -8/Garrison | Discovered new exit (range 65) 4693 | -8/Garrison | Triggered checkpoint 4770 | -8/Garrison | Attempted to access garrison exit controls, blocked by remote lockdown 4852 | -8/Garrison | Triggered checkpoint 4969 | -8/Garrison | Attempted to access garrison exit controls, blocked by remote lockdown 4993 | -8/Garrison | Triggered checkpoint 5051 | -8/Garrison | Entered Materials 5237 | -8/Materials | Discovered new exit (range 9) 5466 | -8/Materials | Identified exit to Garrison 5466 | -8/Materials | Entered Garrison 5492 | -8/Garrison | Triggered checkpoint 5508 | -8/Garrison | Discovered new exit (range 8) 5524 | -8/Garrison | Triggered checkpoint 5613 | -8/Garrison | Destroyed 7 combat bots 5629 | -8/Garrison | Triggered checkpoint 5654 | -8/Garrison | Discovered new exit (range 3) 5667 | -8/Garrison | Attempted to access garrison exit controls, blocked by remote lockdown 5691 | -8/Garrison | Triggered checkpoint 5734 | -8/Garrison | Discovered new exit (range 15) 5750 | -8/Garrison | Reached level 14 5786 | -8/Garrison | Attempted to access garrison exit controls, blocked by remote lockdown 5797 | -8/Garrison | Triggered checkpoint 5857 | -8/Garrison | Entered Factory 5876 | -7/Factory | Upgraded with Utility slot (x2) 5923 | -7/Factory | Identified exit to Storage 5923 | -7/Factory | Identified exit to Lower Caves 5973 | -7/Factory | Central database locked down 6207 | -7/Factory | Build established: Hacker-Scout 6321 | -7/Factory | Found Powered Armor 6381 | -7/Factory | Reached level 15 6406 | -7/Factory | Discovered new exit (range 9) 6567 | -7/Factory | Cargo convoy interrupted 6579 | -7/Factory | Core integrity fell below 50% 6613 | -7/Factory | Upgraded with Power slot (x1) 6657 | -7/Factory | First assault squad dispatched 6713 | -7/Factory | Manually triggered Chute Trap 6713 | -7/Factory | Sucked down chute 6713 | -7/Factory | Entered Waste 6721 | -7/Waste | Spotted C-40 Crusher 6723 | -7/Waste | Spotted C-40 Crusher 6723 | -7/Waste | Spotted C-40 Crusher 6728 | -7/Waste | EMP discharged 6728 | -7/Waste | Crushed by Compactor (1 part destroyed, 2 dropped) 6731 | -7/Waste | Crushed by Compactor (1 part destroyed, 2 dropped) 6735 | -7/Waste | Spotted C-40 Crusher 6741 | -7/Waste | Discovered new exit (range 12) 6741 | -7/Waste | Spotted C-40 Crusher 6744 | -7/Waste | Spotted C-40 Crusher 6759 | -7/Waste | Entered Factory 6886 | -7/Factory | Repaired Corrupted Molecular Scythe? 6897 | -7/Factory | Discovered new exit (range 7) 7001 | -7/Factory | Noticed a derelict Sapper rigging charges 7220 | -7/Factory | Repaired F-cell Engine? 7282 | -7/Factory | Repaired Reaction Control System 7297 | -7/Factory | Fabricated Force Booster (x2) 7404 | -7/Factory | Discovered new exit (range 15) 7464 | -7/Factory | Repaired Cld. Airjet 7613 | -7/Factory | Repaired Broken Imp. Shield Generator 7637 | -7/Factory | Reached level 16 7753 | -7/Factory | Fabricated Imp. Force Booster (x2) 7967 | -7/Factory | Discovered new exit (range 16) 8397 | -7/Factory | Destroyed 7 combat bots 8529 | -7/Factory | Cargo convoy interrupted 8578 | -7/Factory | Found Prototype Hackware 8709 | -7/Factory | Entered Lower Caves 8717 | -7/Lower Caves | Met a Warlord Commander 8718 | -7/Lower Caves | Learned location of Warlord (-4) 8720 | -7/Lower Caves | Warlord Commander delivered Encrypted Comm Array 8722 | -7/Lower Caves | Found Encrypted Comm Array 8840 | -7/Lower Caves | Learned Factory garrison access intel 8840 | -7/Lower Caves | Learned Research emergency access door positions 8940 | -7/Lower Caves | Learned Factory trap positions 9010 | -7/Lower Caves | Discovered new exit (range 11) 9055 | -7/Lower Caves | Learned location of Extension (-6) 9078 | -7/Lower Caves | Entered another Lower Caves area 9191 | -7/Lower Caves | Learned location of 1 exit from Factory 9363 | -7/Lower Caves | Build established: Hacker-Gladiator 9427 | -7/Lower Caves | Discovered new exit (range 5) 9551 | -7/Lower Caves | Spotted B-75 Beast 9667 | -7/Lower Caves | Discovered new exit (range 7) 9670 | -7/Lower Caves | Entered Data Miner 9670 | -7/Data Miner | Discovered new exit (range 6) 9677 | -7/Data Miner | Met Data Miner 9677 | -7/Data Miner | Reached level 17 9683 | -7/Data Miner | Learned location of Section 7 (-2) 9683 | -7/Data Miner | Acquired the access code to Warlord's prototype stash 9688 | -7/Data Miner | Received God Mode back door access code from Data Miner 9694 | -7/Data Miner | Destroyed Data Miner 9698 | -7/Data Miner | Found Prototype Hackware 9699 | -7/Data Miner | Found Prototype Hackware 9701 | -7/Data Miner | Found Prototype Hackware 9702 | -7/Data Miner | Data Conduit disabled 9778 | -7/Data Miner | Identified Exp. Hacking Suite 9795 | -7/Data Miner | Entered Proximity Caves 9831 | -6/Proximity Caves | Learned location of 1 exit from Factory 9875 | -6/Proximity Caves | Build established: Hacker-Scout 9937 | -6/Proximity Caves | Discovered new exit (range 12) 10205 | -6/Proximity Caves | Entered Factory 10206 | -6/Factory | Identified exit to Factory 10206 | -6/Factory | Identified exit to Extension 10207 | -6/Factory | Loaded intel: 74 trap records 10207 | -6/Factory | Reached level 18 10208 | -6/Factory | Loaded intel: 4 garrison access locations 10359 | -6/Factory | Discovered exit to Extension (range 13) 10368 | -6/Factory | Identified System Mapper 10368 | -6/Factory | Identified Deep Network Scanner 10368 | -6/Factory | Identified Ghost Barrier 10368 | -6/Factory | Upgraded with Utility slot (x1) 10400 | -6/Factory | Identified exit to Lower Caves 10460 | -6/Factory | Discovered exit to Factory (range 16) 10783 | -6/Factory | Fabricated Nanoactuators (x2) 10893 | -6/Factory | Fabricated Adv. Actuator Array? 10919 | -6/Factory | Build established: Wizard-Scout 11103 | -6/Factory | Cargo convoy interrupted 11185 | -6/Factory | Core integrity fell below 50% 11235 | -6/Factory | Reached level 19 11353 | -6/Factory | Found Prototype Launcher 11359 | -6/Factory | Found Prototype Device 11359 | -6/Factory | Identified Exp. ECM Suite 11364 | -6/Factory | Identified Mni. Smartbomb Launcher 11371 | -6/Factory | Destroyed 15 combat bots 11374 | -6/Factory | Found Prototype Device 11374 | -6/Factory | Identified Exp. Thermal Shield 12291 | -6/Factory | Upgraded with Utility slot (x1) 12400 | -6/Factory | Repaired Imp. Reaction Control System 12472 | -6/Factory | Fabricated Cld. Antigrav System? 12539 | -6/Factory | Repaired Imp. Shield Generator? 12858 | -6/Factory | Fabricated Cld. Antigrav System? 12957 | -6/Factory | Reached level 20 13010 | -6/Factory | Manually triggered Chute Trap 13010 | -6/Factory | Sucked down chute 13010 | -6/Factory | Entered Waste 13015 | -6/Waste | Spotted C-40 Crusher 13018 | -6/Waste | Spotted C-40 Crusher 13025 | -6/Waste | EMP discharged 13026 | -6/Waste | Spotted C-40 Crusher 13027 | -6/Waste | Spotted C-40 Crusher 13028 | -6/Waste | Spotted C-40 Crusher 13030 | -6/Waste | Spotted C-40 Crusher 13038 | -6/Waste | Discovered new exit (range 16) 13045 | -6/Waste | Entered Factory 13095 | -6/Factory | Spotted B-75 Beast 13106 | -6/Factory | Destroyed B-75 Beast 13327 | -6/Factory | Discovered exit to Factory (range 19) 13439 | -6/Factory | Discovered exit to Factory (range 20) 13857 | -6/Factory | Entered Extension 14314 | -6/Extension | Rescued A7 14327 | -6/Extension | Rescued a captive Derelict 14643 | -6/Extension | Spotted B-75 Beast 14648 | -6/Extension | Spotted B-75 Beast 14656 | -6/Extension | Destroyed B-75 Beast 14662 | -6/Extension | Discovered exit to Factory (range 4) 14662 | -6/Extension | Destroyed B-75 Beast 14687 | -6/Extension | Build established: Commander-Scout 14795 | -6/Extension | Discovered exit to Factory (range 16) 14795 | -6/Extension | Discovered new exit (range 16) 14879 | -6/Extension | Reached level 21 14943 | -6/Extension | Rescued a captive Derelict 15295 | -6/Extension | Entered Cetus 15295 | -6/Cetus | Accompanied by 24 allies (A7) 15300 | -6/Cetus | Acquired a Cetus Manufacturing Module code from A7 15302 | -6/Cetus | Spotted Cetus Guard 15302 | -6/Cetus | Spotted Cetus Guard 15311 | -6/Cetus | Spotted Cetus Guard 15311 | -6/Cetus | Spotted Cetus Guard 15317 | -6/Cetus | Allies destroyed Cetus Guard 15328 | -6/Cetus | Allies destroyed Cetus Guard 15330 | -6/Cetus | Allies destroyed Cetus Guard 15333 | -6/Cetus | Destroyed Cetus Guard 15360 | -6/Cetus | Lost 5 allies 15381 | -6/Cetus | Discovered exit to Factory (range 16) 15421 | -6/Cetus | Started Cetus Manufacturing Module 15444 | -6/Cetus | Escorted A7 to Cetus Mainframe 15446 | -6/Cetus | Manufactured an Enhanced Grunt 15467 | -6/Cetus | Discovered new exit (range 16) 15471 | -6/Cetus | Manufactured an Enhanced Grunt 15486 | -6/Cetus | Spotted Cetus Guard 15486 | -6/Cetus | Spotted Cetus Guard 15496 | -6/Cetus | Manufactured an Enhanced Grunt 15507 | -6/Cetus | Spotted Cetus Guard 15509 | -6/Cetus | Allies destroyed Cetus Guard 15512 | -6/Cetus | Spotted Cetus Guard 15513 | -6/Cetus | Allies destroyed Cetus Guard 15520 | -6/Cetus | Allies destroyed Cetus Guard 15521 | -6/Cetus | Manufactured an Enhanced Grunt 15522 | -6/Cetus | Allies destroyed Cetus Guard 15532 | -6/Cetus | Discovered exit to Factory (range 16) 15534 | -6/Cetus | Met Revision 17 15546 | -6/Cetus | Manufactured an Enhanced Grunt 15687 | -6/Cetus | Murdered A7 15690 | -6/Cetus | Extracted ID and sensor layout for unrecognized location from A7's data core 15710 | -6/Cetus | Entered Archives 15710 | -6/Archives | Accompanied by 21 allies 15716 | -6/Archives | Met Zhirov 15719 | -6/Archives | Discovered new exit (range 15) 15722 | -6/Archives | Reinforcements dispatched to Archives 15752 | -6/Archives | Discovered exit to Factory (range 16) 15755 | -6/Archives | Unable to access archive contents 15759 | -6/Archives | Discovered new exit (range 13) 15767 | -6/Archives | Reinforcements dispatched to Archives 15768 | -6/Archives | Lost 3 allies 15769 | -6/Archives | Zhirov warped through subspace 15787 | -6/Archives | Zhirov detonated Archives 15787 | -6/Archives | Core destroyed Last Messages --------------- 15779_ Enhanced Grunt destroyed. 15779_ J1-GZO(g) destroyed. 15786_ Archive Hub disabled. 15787_ Archive Terminal disabled. 15787_ 21-BZO(h) destroyed. 15787_ C7-6JW(l) destroyed. 15787_ Enhanced Grunt destroyed. 15787_ O-32 Director destroyed. 15787_ DA-T8Q(h) destroyed. 15787_ Archive Terminal disabled. 15787_ YV-J7E(b) destroyed. 15787_ G-50 Soldier destroyed. 15787_ Enhanced Grunt destroyed. 15787_ TX-QJ4(h) destroyed. 15787_ H-66 Slayer destroyed. 15787_ G-50 Soldier destroyed. 15787_ ZI-X4K(g) destroyed. 15787_ H-66 Slayer destroyed. 15787_ UP-HSH(b) destroyed. 15787_ O-32 Director destroyed. Map ----- +----------------------------------------------------+ | ?????????????????#?#???????????????????? | | ?#????????????????? ?#???????????????? | | ?????????#??"??? ?? < #????????#???????? | | ?#???#??????"??? ?? #????????#???????? | | ?#??????#?#"???? ?? #??????#?????????? | | ???????####??""? ?+ #?#####??#???????? | | ??????????????? ? #*= ###?#??#?#?#???#?? | | ????#??##?#"""?" #%% #?#########?##???# | | ????#????#?""""" #*=[######?####??????? | | ????????##?""""? #==[###??#????####???? | | #?????????###"#"###%%=% ??#######?#? | | #??#??#?###"""""""%!Y ?##??###?? | | #?#????##?#"""V"""% %% #??#### | | ????#????##""" " =%h! % #?##? | | ??#?#??####"" =%[!= ?##? | | ########## % %g%% # ### | | ! ## | | % ## | | #? | | /######### ## | | #"""" ### | | #"""" # | | """"""" ## | | """""#"V ## | | """"""""" ### | | """""#"""" @ < #?? | | """""#"""" ### | | ########## ##?# | | ###?####### ###?# | | ?#?#?###?## ###?# | | ?#?##?##### ###### | | #?#?#?#?### ##?#### | | ????#?##### ######?#### | | ?#?#???#### ##?##?#???# | | #????###?## ##?###?##?## | | ?#??#???#?# ##?####?#### | | ????????### ###?#??####?? | | ??###??#?## + ##??##?#?#?## | | #??????#??# # ##?####??##?## | | ?#??#????## # """ #####?###?#?### | | ?#???##??## < # """"? ???##?#####?### | | ?????#?#??# # """"??###########?##?# | | ?????###??#####?########?###???######??? | | ?#?????#?#???##?#??#####?###?######????? | | ???????????#???#?#??######?######??????? | | | | | | | | | | | +----------------------------------------------------+ Best States ------------- Heat Dissipation 41 Energy Generation 33 Energy Capacity 970 Matter Stores 300 Matter Capacity 300 Sight Range 16 Robot Scan Range 14 Terrain Scan Range 20 Terrain Scan Density 210 ECM Strength 3 Additional Mass Support 16 Corruption Block 8 Armor Coverage 400 Resistance: KI 40 Resistance: TH 50 Resistance: EX 20 Resistance: EM 45 Resistance: I 20 Resistance: S 20 Resistance: P 20 Melee Speed Boost 50 Evasion (%) 69 Force Boost 30 Offensive Hacking 56 Defensive Hacking 25 Item Schematics ----------------- Hvy. Ion Engine | -9/Materials | Scanalyzed Imp. Airjet | -7/Factory | Scanalyzed Cld. Pulse Rifle | -7/Factory | Scanalyzed Combat Drone Bay | -7/Data Miner | Free Lgt. Regenerative Plating | -7/Data Miner | Free Biomechanical Wings | -7/Data Miner | Free Gravity Neutralizer | -7/Data Miner | Free Antimatter Cannon | -7/Data Miner | Free Antigrav System | -7/Data Miner | Free Point Defense System | -7/Data Miner | Free Imp. Plasma Cutter | -7/Data Miner | Free Imp. Force Field | -7/Data Miner | Free Lrn. Tractor Beam | -7/Data Miner | Free Molecular Scythe | -6/Factory | Scanalyzed Nanoactuators | -6/Factory | Hacked Adv. Actuator Array | -6/Factory | Hacked Cld. Antigrav System | -6/Factory | Scanalyzed Lrn. Terrain Scanner | -6/Factory | Hacked Robot Schematics ------------------ H-55 Commando | -7/Factory | Hacked A-15 Conveyor | -7/Data Miner | Free E-15 Imp | -7/Data Miner | Free B-48 Gladiator | -7/Data Miner | Free G-50 Soldier | -6/Factory | Hacked Fabricated ------------ Force Booster | x2 | -7/Factory | Preloaded Imp. Force Booster | x2 | -7/Factory | Preloaded Nanoactuators | x2 | -6/Factory Adv. Actuator Array | x2 | -6/Factory Cld. Antigrav System | x1 | -6/Factory Cld. Antigrav System | x1 | -6/Factory Alien Tech Used ----------------- None Achievements -------------- None Challenges ------------ None RPGLIKE | -11 -10 -9 -9 -9 -8 -8 -8 -8 -8 -7 -7 -7 -7 -7 -7 -6 -6 -6 -6 -6 -6 -6 --------- Run | Yrd Mat Mat Min Exi Min Mat Gar Mat Gar Fac Was Fac Low Low Dat Pro Fac Was Fac Ext Cet Arc Levels Raised 20 | . . 6 1 . 1 3 1 . 1 1 . 1 . . 1 . 3 . . 1 . . XP Earned 34968 | 4000 1300 8083 1782 243 1750 4220 1341 146 728 2076 97 1489 402 170 243 1114 3403 46 152 1290 402 491 XP Spent 29800 | 1750 500 7400 1700 . 2000 800 1000 1250 . 7300 . . . . . . 6100 . . . . . Upgrades 26 | 4 1 8 1 . 1 1 1 1 . 6 . . . . . . 2 . . . . . Power Slot 1 | . . . . . . . . . . 1 . . . . . . . . . . . . Propulsion Slot 4 | 1 . 3 . . . . . . . . . . . . . . . . . . . . Utility Slot 10 | 1 . 3 1 . 1 . . . . 2 . . . . . . 2 . . . . . Weapon Slot 2 | 1 . . . . . 1 . . . . . . . . . . . . . . . . Heat Dissipation 1 | . . 1 . . . . . . . . . . . . . . . . . . . . Inventory Capacity 6 | 1 1 1 . . . . 1 1 . 1 . . . . . . . . . . . . Hack Attack % 1 | . . . . . . . . . . 1 . . . . . . . . . . . . Hack Defense % 1 | . . . . . . . . . . 1 . . . . . . . . . . . . Protomatter Created 3323 | . 121 240 . . 8 388 258 115 110 39 . 186 45 63 . 95 726 . 102 714 113 . Integrity Restored 5811 | . 208 682 49 . 24 753 406 25 101 207 . 522 135 189 . 277 1389 . 158 390 296 . Core 4543 | . 143 570 35 . 24 561 264 21 71 207 . 420 135 189 . 177 1166 . 108 224 228 . Parts 1268 | . 65 112 14 . . 192 142 4 30 . . 102 . . . 100 223 . 50 166 68 . Protomatter Decayed 1490 | . 8 65 26 . . 77 50 94 10 27 . . . . . . 138 . 45 527 288 135 Game ------ Seed LargeElectrostormActivator Manual? 0 Play Time 07:07:38 Cumulative 532.3 hours Start 2024.08.24 @ 23:02:52 End 2024.08.25 @ 19:12:06 Sessions 5 Manual Loads 0 Difficulty Adventurer Special Mode Winter2019/RPGLIKE Game No. 41 Rogue 9 Adventurer 18 Explorer 14 Win Type - Total 30 Types 18/2/6/1/1/2/0/0/0 Lore% 71 Gallery% 85 Achievement% 75 Wizard Run 0 Options --------- Layout 0 ASCII 0 Keyboard 0 Movement Mouse Keybinds 0 Fullscreen 2 Font 36/Terminus++ Map View 76x50 Zoom Use 0% Tactical HUD 1 Map Filters NONE Filters NONE Steam 0 RUN: ecaf0080-aed6-4108-be27-dfcd37c4886f